fUST/lending_fUST_20250205
["ID","MTS","AMOUNT","RATE_DAILY","PERIOD"]
[351665640,1738699841863,-696.57,0.00016438,2]
[351665641,1738699841874,-500.0,0.00016438,2]
[351665642,1738699841883,-151.0,0.00016438,2]
[351665643,1738699841893,-500.0,0.00016438,2]
[351665644,1738699841903,-500.0,0.00016438,2]
[351665645,1738699841912,-551.73,0.00016438,2]
[351665646,1738699841922,-319.05526936,0.00016438,2]
[351665647,1738699841932,-550.75453546,0.00016438,2]
[351665648,1738699841942,-500.0,0.00016438,2]
[351665649,1738699841951,-151.0,0.00016438,2]
[351665650,1738699841960,-563.95,0.00016438,2]
[351665651,1738699841970,-602.70887955,0.00016438,2]
[351665652,1738699841980,-500.0,0.00016438,2]
[351665653,1738699841991,-2577.49,0.00016438,2]
[351665654,1738699842009,-500.0,0.00016438,2]
[351665655,1738699842025,-500.0,0.00016438,2]
[351665656,1738699842040,-18676.77,0.00016438,2]
[351665657,1738699842055,-500.0,0.00016438,2]
[351665658,1738699842066,-13.9119145,0.00016438,2]
[351665659,1738699842082,-581.5880855,0.00016438,2]
[351665660,1738699842095,-1824.35,0.00016438,2]
[351665661,1738699842109,-4303.54,0.00016438,2]
[351665662,1738699842123,-500.0,0.00016438,2]
[351665663,1738699842137,-500.0,0.00016438,2]
[351665664,1738699842150,-3527.76,0.00016438,2]
[351665665,1738699842164,-500.0,0.00016438,2]
[351665666,1738699842178,-2001.41,0.00016438,2]
[351665667,1738699842190,-500.0,0.00016438,2]
[351665668,1738699842202,-500.0,0.00016438,2]
[351665669,1738699842214,-500.0,0.00016438,2]
[351665670,1738699842226,-3802.62926864,0.00016438,2]
[351665697,1738699843695,-2611.96073136,0.00016438,2]
[351665698,1738699843706,-324.92829741,0.00016438,2]
[351665699,1738699843749,-175.07170259,0.00016438,2]
[351665700,1738699843764,-1335.2,0.00016438,2]
[351665701,1738699843776,-458.11881922,0.00016438,2]
[351665702,1738699843791,-41.88118078,0.00016438,2]
[351665703,1738699843802,-500.0,0.00016438,2]
[351665704,1738699843814,-500.0,0.00016438,2]
[351665705,1738699843825,-1280.75355472,0.00016438,2]
[351665744,1738699868434,1947.0,0.00018,30]
[351665745,1738699870264,500.0,0.00014164,2]
[351665749,1738700271878,162.266247,0.00013973,2]
[351665809,1738701031951,-982.51,0.00015387,2]
[351665810,1738701031963,-964.51838994,0.00015387,2]
[351665811,1738701032066,-2023.08588406,0.00015387,2]
[351665812,1738701032077,-71.05003394,0.00015399,2]
[351665813,1738701032090,-155.72874906,0.00015399,2]
[351665814,1738701032099,-772.40811507,0.00016132,2]
[351665815,1738701032112,-772.40811507,0.00016232,2]
[351665816,1738701032120,-772.40811507,0.00016332,2]
[351665817,1738701032130,-290.40690581,0.00016338,2]
[351665818,1738701032140,-251.85510233,0.00016338,2]
[351665819,1738701032149,-407.69920975,0.00016338,2]
[351665820,1738701032158,-407.69920974,0.00016372,2]
[351665821,1738701032168,-407.69920974,0.00016407,2]
[351665822,1738701032178,-715.2722946,0.00016409,2]
[351665823,1738701032187,-300.0,0.00016428,2]
[351665824,1738701032195,-772.40811507,0.00016432,2]
[351665825,1738701032204,-499.0,0.00016437,2]
[351665826,1738701032213,-10969.0,0.00016437,2]
[351665827,1738701032223,-500.0,0.00016438,2]
[351665828,1738701032232,-151.0,0.00016438,2]
[351665829,1738701032243,-500.0,0.00016438,2]
[351665830,1738701032254,-515.61803568,0.00016438,2]
[351665831,1738701032263,-559.57522098,0.00016438,2]
[351665832,1738701032271,-500.0,0.00016438,2]
[351665833,1738701032280,-500.0,0.00016438,2]
[351665835,1738701032289,-208.53878583,0.00016438,2]
[351665837,1738701032302,-291.46121417,0.00016438,2]
[351665839,1738701032312,-500.0,0.00016438,2]
[351665841,1738701032321,-500.0,0.00016438,2]
[351665843,1738701032331,-500.0,0.00016438,2]
[351665844,1738701032341,-500.0,0.00016438,2]
[351665846,1738701032351,-616.86938606,0.00016438,2]
[351665848,1738701032363,-500.0,0.00016438,2]
[351665849,1738701032373,-339.21630028,0.00016438,2]
[351665851,1738701032382,-200.0,0.00016438,2]
[351665853,1738701032393,-500.0,0.00016438,2]
[351665855,1738701032402,-500.0,0.00016438,2]
[351665857,1738701032412,-500.0,0.00016438,2]
[351665859,1738701032421,-151.0,0.00016438,2]
[351665860,1738701032431,-500.0,0.00016438,2]
[351665861,1738701032440,-500.0,0.00016438,2]
[351665862,1738701032450,-500.0,0.00016438,2]
[351665863,1738701032460,-500.0,0.00016438,2]
[351665864,1738701032470,-500.0,0.00016438,2]
[351665865,1738701032480,-593.85,0.00016438,2]
[351665866,1738701032489,-506.86884258,0.00016438,2]
[351665867,1738701032499,-500.0,0.00016438,2]
[351665868,1738701032508,-500.0,0.00016438,2]
[351665869,1738701032518,-500.0,0.00016438,2]
[351665870,1738701032527,-520.39,0.00016438,2]
[351665871,1738701032536,-500.0,0.00016438,2]
[351665872,1738701032546,-500.0,0.00016438,2]
[351665873,1738701032557,-1015.83,0.00016438,2]
[351665874,1738701032567,-500.0,0.00016438,2]
[351665875,1738701032576,-285.68982757,0.00016438,2]
[351665876,1738701034904,-195.52261122,0.00016438,2]
[351665877,1738701034914,-500.0,0.00016438,2]
[351665878,1738701034924,-383.76078218,0.00016438,2]
[351665879,1738701034936,-116.23921782,0.00016438,2]
[351665880,1738701034945,-323.32578218,0.00016438,2]
[351665924,1738701037830,-500.0,0.00016438,2]
[351665926,1738701037840,-500.0,0.00016438,2]
[351665928,1738701037850,-445.64791625,0.00016438,2]
[351665931,1738701037860,-1280.51,0.00016438,2]
[351665932,1738701037872,-500.0,0.00016438,2]
[351665934,1738701037882,-500.0,0.00016438,2]
[351665936,1738701037892,-502.35809235,0.00016438,2]
[351665938,1738701037901,-500.0,0.00016438,2]
[351665940,1738701037911,-766.02,0.00016438,2]
[351665943,1738701037920,-500.0,0.00016438,2]
[351665944,1738701037930,-500.0,0.00016438,2]
[351665946,1738701037939,-541.9,0.00016438,2]
[351665948,1738701037949,-500.0,0.00016438,2]
[351665950,1738701037959,-500.0,0.00016438,2]
[351665952,1738701037968,-500.0,0.00016438,2]
[351665955,1738701037980,-500.0,0.00016438,2]
[351665956,1738701037990,-500.0,0.00016438,2]
[351665958,1738701037999,-500.0,0.00016438,2]
[351665960,1738701038013,-151.0,0.00016438,2]
[351665964,1738701038023,-151.0,0.00016438,2]
[351665967,1738701038033,-968.83,0.00016438,2]
[351665969,1738701038042,-151.0,0.00016438,2]
[351665972,1738701038052,-500.0,0.00016438,2]
[351665975,1738701038061,-1630.04,0.00016438,2]
[351665978,1738701038070,-824.17,0.00016438,2]
[351665979,1738701038080,-500.0,0.00016438,2]
[351665982,1738701038090,-586.21,0.00016438,2]
[351665986,1738701038099,-500.0,0.00016438,2]
[351665988,1738701038108,-500.0,0.00016438,2]
[351665991,1738701038120,-297.33168394,0.00016438,2]
[351665994,1738701038133,-202.66831606,0.00016438,2]
[351665997,1738701038142,-547.39,0.00016438,2]
[351665999,1738701038151,-500.0,0.00016438,2]
[351666001,1738701038160,-651.38,0.00016438,2]
[351666003,1738701038169,-500.0,0.00016438,2]
[351666005,1738701038179,-500.0,0.00016438,2]
[351666007,1738701038188,-500.0,0.00016438,2]
[351666009,1738701038197,-500.0,0.00016438,2]
[351666011,1738701038207,-500.0,0.00016438,2]
[351666013,1738701038216,-500.0,0.00016438,2]
[351666015,1738701038225,-574.36,0.00016438,2]
[351666017,1738701038234,-500.0,0.00016438,2]
[351666019,1738701038243,-539.31,0.00016438,2]
[351666035,1738701038383,-500.0,0.00016438,2]
[351666037,1738701038393,-500.0,0.00016438,2]
[351666039,1738701038403,-500.0,0.00016438,2]
[351666042,1738701038412,-500.0,0.00016438,2]
[351666044,1738701038422,-990.88,0.00016438,2]
[351666046,1738701038431,-151.0,0.00016438,2]
[351666048,1738701038440,-200.68521038,0.00016438,2]
[351666050,1738701038453,-299.31478962,0.00016438,2]
[351666052,1738701038462,-500.0,0.00016438,2]
[351666054,1738701038471,-500.0,0.00016438,2]
[351666056,1738701038480,-500.0,0.00016438,2]
[351666058,1738701038489,-764.06,0.00016438,2]
[351666060,1738701038499,-500.0,0.00016438,2]
[351666061,1738701038507,-361.07941409,0.00016438,2]
[351666064,1738701038519,-138.92058591,0.00016438,2]
[351666066,1738701038528,-500.0,0.00016438,2]
[351666068,1738701038538,-1111.96,0.00016438,2]
[351666070,1738701038547,-500.0,0.00016438,2]
[351666072,1738701038557,-500.0,0.00016438,2]
[351666074,1738701038568,-500.0,0.00016438,2]
[351666076,1738701038578,-500.0,0.00016438,2]
[351666078,1738701038588,-1000.0,0.00016438,2]
[351666080,1738701038600,-938.81,0.00016438,2]
[351666082,1738701038609,-691.2,0.00016438,2]
[351666084,1738701038621,-151.0,0.00016438,2]
[351666086,1738701038633,-102.52210193,0.00016438,2]
[351666088,1738701038644,-48.47789807,0.00016438,2]
[351666090,1738701038653,-2129.96,0.00016438,2]
[351666092,1738701038663,-500.0,0.00016438,2]
[351666094,1738701038672,-500.0,0.00016438,2]
[351666096,1738701038682,-500.0,0.00016438,2]
[351666099,1738701038692,-1200.93,0.00016438,2]
[351666100,1738701038701,-500.0,0.00016438,2]
[351666102,1738701038710,-500.0,0.00016438,2]
[351666104,1738701038720,-500.0,0.00016438,2]
[351666107,1738701038729,-500.0,0.00016438,2]
[351666108,1738701038738,-500.0,0.00016438,2]
[351666111,1738701038747,-500.0,0.00016438,2]
[351666113,1738701038757,-508.29,0.00016438,2]
[351666115,1738701038766,-500.0,0.00016438,2]
[351666116,1738701038775,-500.0,0.00016438,2]
[351666118,1738701038784,-500.0,0.00016438,2]
[351666120,1738701038794,-500.0,0.00016438,2]
[351666122,1738701038803,-500.0,0.00016438,2]
[351666124,1738701038812,-2892.2,0.00016438,2]
[351666126,1738701038822,-500.0,0.00016438,2]
[351666128,1738701038831,-500.0,0.00016438,2]
[351666131,1738701038840,-500.0,0.00016438,2]
[351666133,1738701038849,-1588.81,0.00016438,2]
[351666134,1738701038858,-1212.14,0.00016438,2]
[351666136,1738701038870,-500.0,0.00016438,2]
[351666138,1738701038879,-500.0,0.00016438,2]
[351666140,1738701038889,-552.66,0.00016438,2]
[351666142,1738701038898,-8206.55724844,0.00016438,2]
[351666144,1738701038910,-1758.41932378,0.00016438,2]
[351666146,1738701038921,-707.59321876,0.00016438,2]
[351666149,1738701038932,-2027.25765861,0.00016438,2]
[351666151,1738701038943,-446.20833079,0.00016438,2]
[351666156,1738701038983,-4608.19850512,0.00016438,2]
[351666158,1738701038997,-504.1357145,0.00016438,2]
[351666160,1738701039006,-777.7426675,0.00016438,2]
[351666162,1738701039017,-460.1173325,0.00016438,2]
[351666164,1738701039025,-570.68,0.00016438,2]
[351666166,1738701039036,-667.54,0.00016438,2]
[351666168,1738701039046,-151.0,0.00016438,2]
[351666170,1738701039055,-151.0,0.00016438,2]
[351666172,1738701039064,-7727.78,0.00016438,2]
[351666174,1738701039074,-500.0,0.00016438,2]
[351666176,1738701039083,-500.0,0.00016438,2]
[351666178,1738701039092,-500.0,0.00016438,2]
[351666180,1738701039101,-500.0,0.00016438,2]
[351666182,1738701039110,-528.74,0.00016438,2]
[351666184,1738701039124,-1918.01,0.00016438,2]
[351666186,1738701039133,-500.0,0.00016438,2]
[351666188,1738701039142,-500.0,0.00016438,2]
[351666190,1738701039151,-500.0,0.00016438,2]
[351666192,1738701039160,-500.0,0.00016438,2]
[351666194,1738701039169,-500.0,0.00016438,2]
[351666196,1738701039179,-823.36,0.00016438,2]
[351666198,1738701039188,-500.0,0.00016438,2]
[351666199,1738701039198,-4163.46,0.00016438,2]
[351666200,1738701039207,-500.0,0.00016438,2]
[351666201,1738701039216,-500.0,0.00016438,2]
[351666202,1738701039225,-1748.33,0.00016438,2]
[351666203,1738701039234,-3848.98,0.00016438,2]
[351666204,1738701039243,-500.0,0.00016438,2]
[351666205,1738701039253,-500.0,0.00016438,2]
[351666206,1738701039262,-500.0,0.00016438,2]
[351666207,1738701039271,-3380.77,0.00016438,2]
[351666208,1738701039281,-6315.29,0.00016438,2]
[351666209,1738701039290,-540.46,0.00016438,2]
[351666210,1738701039299,-500.0,0.00016438,2]
[351666211,1738701039308,-500.0,0.00016438,2]
[351666212,1738701039318,-879.98,0.00016438,2]
[351666213,1738701039327,-500.0,0.00016438,2]
[351666214,1738701039336,-500.0,0.00016438,2]
[351666216,1738701039345,-500.0,0.00016438,2]
[351666217,1738701039355,-500.0,0.00016438,2]
[351666219,1738701039365,-930.93,0.00016438,2]
[351666221,1738701039374,-44687.33480239,0.00016438,2]
[351666223,1738701039393,-5176.69519761,0.00016438,2]
[351666225,1738701039402,-500.0,0.00016438,2]
[351666227,1738701039412,-1420.53,0.00016438,2]
[351666229,1738701039423,-500.0,0.00016438,2]
[351666231,1738701039432,-908.33,0.00016438,2]
[351666232,1738701039441,-500.0,0.00016438,2]
[351666234,1738701039450,-500.0,0.00016438,2]
[351666236,1738701039460,-1331.36,0.00016438,2]
[351666238,1738701039469,-13172.42,0.00016438,2]
[351666240,1738701039479,-500.0,0.00016438,2]
[351666242,1738701039488,-1932.65,0.00016438,2]
[351666243,1738701039498,-4084.23,0.00016438,2]
[351666244,1738701039507,-500.0,0.00016438,2]
[351666245,1738701039516,-3588.26,0.00016438,2]
[351666246,1738701039525,-1930.12,0.00016438,2]
[351666247,1738701039535,-500.0,0.00016438,2]
[351666248,1738701039544,-543.03,0.00016438,2]
[351666249,1738701039553,-1199.94,0.00016438,2]
[351666250,1738701039563,-500.0,0.00016438,2]
[351666251,1738701039573,-1230.05,0.00016438,2]
[351666252,1738701039582,-642.37586781,0.00016438,2]
[351666254,1738701039827,-572.60982878,0.00016438,2]
[351666261,1738701039897,-406.07430341,0.00016438,2]
[351666263,1738701039907,-500.0,0.00016438,2]
[351666265,1738701039916,-500.0,0.00016438,2]
[351666267,1738701039925,-500.0,0.00016438,2]
[351666269,1738701039935,-2095.12,0.00016438,2]
[351666271,1738701039944,-175.01552759,0.00016438,2]
[351666273,1738701039955,-526.85312159,0.00016438,2]
[351666277,1738701039976,-786.66135082,0.00016438,2]
[351666279,1738701039986,-500.0,0.00016438,2]
[351666281,1738701039996,-573.15741818,0.00016438,2]
[351666340,1738701043129,-282.22258182,0.00016438,2]
[351666342,1738701043140,-1112.93,0.00016438,2]
[351666343,1738701043150,-230.9776588,0.00016438,2]
[351666344,1738701043160,-500.0,0.00016438,2]
[351666345,1738701043172,-500.0,0.00016438,2]
[351666346,1738701043182,-500.0,0.00016438,2]
[351666347,1738701043192,-500.0,0.00016438,2]
[351666348,1738701043201,-504.92,0.00016438,2]
[351666349,1738701043211,-864.33,0.00016438,2]
[351666350,1738701043220,-627.39,0.00016438,2]
[351666351,1738701043231,-500.0,0.00016438,2]
[351666352,1738701043240,-1335.43,0.00016438,2]
[351666353,1738701043250,-500.0,0.00016438,2]
[351666354,1738701043259,-500.0,0.00016438,2]
[351666355,1738701043267,-211.14744243,0.00016438,2]
[351666356,1738701043283,-1544.56255757,0.00016438,2]
[351666357,1738701043293,-519.09,0.00016438,2]
[351666358,1738701043302,-151.0,0.00016438,2]
[351666359,1738701043311,-500.0,0.00016438,2]
[351666360,1738701043320,-510.21,0.00016438,2]
[351666361,1738701043329,-500.0,0.00016438,2]
[351666362,1738701043338,-269.98723236,0.00016438,2]
[351666363,1738701043347,-500.0,0.00016438,2]
[351666364,1738701043356,-500.0,0.00016438,2]
[351666365,1738701043370,-500.0,0.00016438,2]
[351666366,1738701043379,-789.63,0.00016438,2]
[351666367,1738701043388,-500.0,0.00016438,2]
[351666368,1738701043397,-151.0,0.00016438,2]
[351666369,1738701043407,-151.0,0.00016438,2]
[351666370,1738701043416,-5911.26,0.00016438,2]
[351666371,1738701043426,-514.53,0.00016438,2]
[351666372,1738701043437,-500.0,0.00016438,2]
[351666373,1738701043446,-472.08928267,0.00016438,2]
[351666374,1738701043456,-251.1909274,0.00016438,2]
[351666375,1738701043468,-248.8090726,0.00016438,2]
[351666376,1738701043477,-500.0,0.00016438,2]
[351666377,1738701043486,-500.0,0.00016438,2]
[351666378,1738701043496,-500.0,0.00016438,2]
[351666379,1738701043506,-2525.58,0.00016438,2]
[351666380,1738701043515,-500.0,0.00016438,2]
[351666381,1738701043525,-500.0,0.00016438,2]
[351666382,1738701043535,-304.19026539,0.00016438,2]
[351666383,1738701043545,-500.0,0.00016438,2]
[351666384,1738701043554,-422.8473025,0.00016438,2]
[351666385,1738701043566,-77.1526975,0.00016438,2]
[351666386,1738701043576,-1372.71,0.00016438,2]
[351666387,1738701043585,-500.0,0.00016438,2]
[351666388,1738701043595,-556.75,0.00016438,2]
[351666389,1738701043604,-104.87222016,0.00016438,2]
[351666513,1738701066578,500.0,0.00014164,2]
[351666543,1738701169807,162.266247,0.00013973,2]
[351666545,1738701207752,500.0,0.00014164,2]
[351666559,1738702200342,6109.80782355,0.00016,15]
[351666593,1738702232011,-300.0,0.00015289,2]
[351666596,1738702232021,-733.79483915,0.0001529,2]
[351666598,1738702232032,-367.89812471,0.0001529,2]
[351666602,1738702232069,-23798.30703614,0.0001529,2]
[351666604,1738702232079,-250.0,0.00015371,2]
[351666607,1738702232092,-298.5420776,0.00015387,2]
[351666609,1738702232102,-160.27220844,0.0001552,2]
[351666611,1738702232112,-160.271,0.0001562,2]
[351666613,1738702232121,-500.0,0.00015973,2]
[351666615,1738702232131,-500.0,0.00015973,2]
[351666617,1738702232140,-500.0,0.00015973,2]
[351666619,1738702232149,-500.0,0.00015973,2]
[351666621,1738702232159,-159821.37940674,0.00016,15]
[351667233,1738702241295,-500.0,0.00015999,2]
[351667234,1738702241305,-248.49460117,0.00015999,2]
[351667235,1738702241315,-500.0,0.00015999,2]
[351667236,1738702241326,-572.05864867,0.00015999,2]
[351667237,1738702241335,-398.55082521,0.00015999,2]
[351667400,1738702242935,-101.44917479,0.00015999,2]
[351667403,1738702242945,-500.0,0.00015999,2]
[351667405,1738702242956,-500.0,0.00015999,2]
[351667407,1738702242967,-221.31746307,0.00015999,2]
[351667409,1738702242976,-274.89135377,0.00015999,2]
[351667411,1738702242985,-431.76925468,0.00015999,2]
[351667413,1738702242997,-68.23074532,0.00015999,2]
[351667415,1738702243007,-500.0,0.00015999,2]
[351667417,1738702243017,-231.74061467,0.00015999,2]
[351668092,1738702282038,500.0,0.00014164,2]
[351668096,1738702363025,162.266247,0.00013973,2]
[351668102,1738702553869,500.0,0.00014164,2]
[351668114,1738703070190,9037.2949437,0.00014872,2]
[351668169,1738703432351,-209.83887159,0.00015519,2]
[351668172,1738703432361,-300.0,0.00015619,2]
[351668174,1738703432371,-160.358,0.0001562,2]
[351668176,1738703432380,-215.32484706,0.0001562,2]
[351668180,1738703432410,-2230.9261025,0.0001562,2]
[351668754,1738703438251,-7547.18517786,0.0001562,2]
[351668761,1738703438310,-13107.52418034,0.0001562,2]
[351668763,1738703438319,-995.117,0.0001568,2]
[351668765,1738703438330,-156.277,0.0001568,2]
[351668768,1738703438340,-12049.16044889,0.00015803,2]
[351668770,1738703438350,-1683.23287969,0.00015867,2]
[351668771,1738703438360,-37055.7440708,0.000159,2]
[351668772,1738703438370,-966.77292567,0.000159,2]
[351668773,1738703438380,-4448.60356732,0.000159,2]
[351668774,1738703438390,-500.0,0.00015973,2]
[351668775,1738703438400,-500.0,0.00015973,2]
[351668777,1738703438410,-500.0,0.00015973,2]
[351668779,1738703438420,-500.0,0.00015973,2]
[351668781,1738703438430,-503.08834129,0.00015973,2]
[351668783,1738703438447,-559.91687658,0.00015973,2]
[351668785,1738703438457,-268.25938533,0.00015999,2]
[351668788,1738703438467,-500.0,0.00015999,2]
[351668790,1738703438477,-500.0,0.00015999,2]
[351668792,1738703438486,-500.0,0.00015999,2]
[351668794,1738703438496,-326.08612818,0.00015999,2]
[351668796,1738703438506,-240.07451206,0.00015999,2]
[351668798,1738703438516,-500.0,0.00015999,2]
[351668800,1738703438527,-482.76694128,0.00015999,2]
[351668802,1738703438537,-500.0,0.00015999,2]
[351668804,1738703438547,-500.0,0.00015999,2]
[351668806,1738703438557,-500.0,0.00015999,2]
[351668809,1738703438567,-500.0,0.00015999,2]
[351668811,1738703438576,-500.0,0.00015999,2]
[351668813,1738703438586,-500.0,0.00015999,2]
[351668815,1738703438595,-484.44192431,0.00015999,2]
[351668817,1738703438605,-500.0,0.00015999,2]
[351668819,1738703438615,-500.0,0.00015999,2]
[351668821,1738703438624,-500.0,0.00015999,2]
[351668823,1738703438635,-500.0,0.00015999,2]
[351668825,1738703438645,-500.0,0.00015999,2]
[351668827,1738703438655,-500.0,0.00015999,2]
[351668829,1738703438665,-294.50578534,0.00015999,2]
[351668831,1738703438675,-500.0,0.00015999,2]
[351668834,1738703438691,-11652.69892567,0.00016,15]
[351668854,1738703438876,-1092.32587227,0.00016,15]
[351668856,1738703438891,-1397.0,0.00016,15]
[351668860,1738703438912,-9787.26157221,0.00016,15]
[351668862,1738703438924,-5087.27207496,0.00016,15]
[351669015,1738703440367,-1856.84192456,0.00016,15]
[351669017,1738703440379,-6515.86350149,0.00016,15]
[351669349,1738703444145,-4677.54696933,0.00016,15]
[351669350,1738703444157,-14673.15,0.00016,15]
[351669357,1738703444258,-33426.80194465,0.00016,15]
[351669587,1738703447153,-17621.0,0.00016,15]
[351669594,1738703447211,-567025.77245052,0.00016,15]
[351671015,1738704632437,-796.094,0.0001568,2]
[351671016,1738704632447,-1303.02878156,0.00015834,2]
[351671017,1738704632457,-785.15554435,0.000159,2]
[351671098,1738704638461,-3218.58766622,0.000159,2]
[351671099,1738704638470,-654.61429303,0.000159,2]
[351671100,1738704638480,-500.0,0.00015973,2]
[351671101,1738704638489,-500.0,0.00015973,2]
[351671103,1738704638498,-654.61429299,0.00015982,2]
[351671105,1738704638507,-300.0,0.00015999,2]
[351671106,1738704638517,-10844.66293718,0.00016,15]
[351671320,1738704642506,-271.63543062,0.00016,15]
[351671373,1738704643345,-14610.75,0.00016,15]
[351671374,1738704643358,-2939.42,0.00016,15]
[351671397,1738704646715,-35824.999984,0.00016,15]
[351671398,1738704690591,500.0,0.00014164,2]
[351671407,1738705084579,942.0133641,0.00014995,2]
[351671805,1738705836407,-500.0,0.00015534,2]
[351671807,1738705836418,-613.91188829,0.0001568,2]
[351671815,1738705836501,-199.03211171,0.0001568,2]
[351671817,1738705836511,-112.48473404,0.00015839,2]
[351671820,1738705836523,-744.15622926,0.00015839,2]
[351671822,1738705836535,-214.04207689,0.00015899,2]
[351671824,1738705836547,-314.11739275,0.00015899,2]
[351671826,1738705836556,-300.0,0.00015899,2]
[351671828,1738705836566,-2500.0,0.000159,2]
[351671830,1738705836575,-3603.36888954,0.000159,2]
[351671833,1738705836585,-509.34085419,0.00015973,2]
[351671836,1738705836594,-500.0,0.00015973,2]
[351671839,1738705836604,-528.15946958,0.00015981,2]
[351671842,1738705836614,-151.0,0.00015998,2]
[351671845,1738705836623,-500.0,0.00015999,2]
[351671848,1738705836632,-500.0,0.00015999,2]
[351671851,1738705836641,-500.0,0.00015999,2]
[351671854,1738705836650,-500.0,0.00015999,2]
[351671856,1738705836659,-500.0,0.00015999,2]
[351671858,1738705836669,-189.13752448,0.00015999,2]
[351671860,1738705836679,-500.0,0.00015999,2]
[351671862,1738705836688,-500.0,0.00015999,2]
[351671864,1738705836697,-379.07715787,0.00015999,2]
[351671866,1738705836707,-500.0,0.00015999,2]
[351671868,1738705836718,-500.0,0.00015999,2]
[351671871,1738705836733,-495.73761502,0.00015999,2]
[351671873,1738705836742,-368.24050181,0.00015999,2]
[351671875,1738705836751,-500.0,0.00015999,2]
[351671877,1738705836761,-500.0,0.00015999,2]
[351671879,1738705836770,-500.0,0.00015999,2]
[351671881,1738705836779,-500.0,0.00015999,2]
[351671883,1738705836788,-500.0,0.00015999,2]
[351671885,1738705836797,-600.0,0.00015999,2]
[351671886,1738705836806,-166.19306833,0.00015999,2]
[351671888,1738705836816,-500.0,0.00015999,2]
[351671890,1738705836825,-227.80891633,0.00015999,2]
[351671892,1738705836835,-500.0,0.00015999,2]
[351671895,1738705836844,-500.0,0.00015999,2]
[351671897,1738705836854,-500.0,0.00015999,2]
[351671898,1738705836863,-500.0,0.00015999,2]
[351671900,1738705836872,-500.0,0.00015999,2]
[351671902,1738705836881,-500.0,0.00015999,2]
[351671904,1738705836890,-500.0,0.00015999,2]
[351671906,1738705836900,-500.0,0.00015999,2]
[351671909,1738705836910,-500.0,0.00015999,2]
[351671910,1738705836920,-500.0,0.00015999,2]
[351671912,1738705836930,-500.0,0.00015999,2]
[351671915,1738705836939,-500.0,0.00015999,2]
[351671917,1738705836949,-500.0,0.00015999,2]
[351671919,1738705836958,-500.0,0.00015999,2]
[351671921,1738705836967,-500.0,0.00015999,2]
[351671923,1738705836979,-500.0,0.00015999,2]
[351671925,1738705836988,-500.0,0.00015999,2]
[351671926,1738705836998,-299.53618002,0.00015999,2]
[351671928,1738705837007,-500.0,0.00015999,2]
[351671931,1738705837016,-500.0,0.00015999,2]
[351671933,1738705837026,-500.0,0.00015999,2]
[351671934,1738705837036,-500.0,0.00015999,2]
[351671937,1738705837046,-500.0,0.00015999,2]
[351671938,1738705837056,-500.0,0.00015999,2]
[351671940,1738705837066,-23478.11850679,0.00016,15]
[351672098,1738705838590,-15367.07482464,0.00016,15]
[351672100,1738705838601,-14883.11433018,0.00016,15]
[351672107,1738705838656,-8287.5171726,0.00016,15]
[351672109,1738705838668,-6692.97813595,0.00016,15]
[351672111,1738705838679,-1067.0,0.00016,15]
[351672541,1738705843302,-283.46096494,0.00015998,2]